fUSD/lending_fUSD_20241125
["ID","MTS","AMOUNT","RATE_DAILY","PERIOD"]
[343269172,1732536701415,-1823.51,0.00043835,120]
[343269173,1732536701425,-1823.51,0.00043835,120]
[343269174,1732536701435,-1823.51,0.00043835,120]
[343269175,1732536701445,-599.84,0.00043835,21]
[343269176,1732536701454,-516.76,0.00043835,21]
[343269177,1732536701464,-843.37,0.00043835,21]
[343269178,1732536701531,-897.11,0.00043835,21]
[343269179,1732536701541,-1516.6,0.00043835,21]
[343269180,1732536701550,-4321.07,0.00043835,21]
[343269181,1732536701560,-1501.72,0.00043835,21]
[343269182,1732536701570,-21441.79,0.00043835,21]
[343269183,1732536701579,-3276.7,0.00043835,21]
[343269184,1732536701589,-2182.69,0.00043835,21]
[343269185,1732536701598,-2334.22,0.00043835,21]
[343269186,1732536701607,-1941.42,0.00043835,21]
[343269187,1732536701617,-172.26987063,0.00043835,21]
[343269188,1732536701627,-1034.74,0.00043835,21]
[343269189,1732536701635,-548.14,0.00043835,21]
[343269190,1732536701644,-1055.46,0.00043835,21]
[343269191,1732536701653,-2248.0,0.00043836,15]
[343269192,1732536701662,-2000.0,0.00043836,15]
[343269193,1732536701672,-1000.0,0.0004384,19]
[343269194,1732536701681,-1000.0,0.0004386,20]
[343269195,1732536701691,-481.65402023,0.00043877,30]
[343269196,1732536701700,-500.0,0.00043877,21]
[343269197,1732536701710,-771.52,0.00043877,21]
[343269198,1732536701720,-500.0,0.00043877,21]
[343269199,1732536701729,-658.45,0.00043877,21]
[343269200,1732536701738,-1976.25,0.00043877,21]
[343269201,1732536701747,-876.13,0.00043877,21]
[343269202,1732536701757,-595.88293015,0.00043877,21]
[343269203,1732536701767,-514.52,0.00043877,21]
[343269204,1732536701776,-500.0,0.00043877,21]
[343269205,1732536701786,-7241.01,0.00043877,21]
[343269206,1732536701795,-1484.3,0.00043877,21]
[343269207,1732536701804,-656.71,0.00043877,21]
[343269208,1732536701814,-1219.29,0.00043877,21]
[343269209,1732536701824,-1044.42,0.00043877,21]
[343269210,1732536701834,-5313.62,0.00043877,21]
[343269211,1732536701843,-635.51,0.00043877,21]
[343269212,1732536701853,-1329.57,0.00043877,21]
[343269213,1732536701863,-3316.78,0.00043877,21]
[343269214,1732536701872,-500.0,0.00043877,21]
[343269215,1732536701882,-151.0,0.00043877,14]
[343269216,1732536701891,-151.0,0.00043877,14]
[343269217,1732536701901,-913.11,0.00043877,21]
[343269218,1732536701910,-528.36,0.00043877,21]
[343269219,1732536701920,-1044.85,0.00043877,21]
[343269220,1732536701929,-1961.52,0.00043877,21]
[343269221,1732536701938,-1014.5,0.00043877,21]
[343269222,1732536701948,-1204.64,0.00043877,21]
[343269223,1732536701958,-2806.06,0.00043877,21]
[343269224,1732536701967,-713.37,0.00043877,21]
[343269225,1732536701976,-2152.31,0.00043877,21]
[343269226,1732536701987,-500.0,0.00043877,21]
[343269227,1732536701996,-2862.22,0.00043877,21]
[343269228,1732536702005,-818.24,0.00043877,21]
[343269229,1732536702015,-594.32,0.00043877,21]
[343269230,1732536702025,-5698.56,0.00043877,21]
[343269231,1732536702034,-2231.16,0.00043877,21]
[343269232,1732536702044,-3033.86,0.00043877,21]
[343269233,1732536702053,-1000.0,0.0004388,20]
[343269234,1732536702065,-10000.0,0.000439,120]
[343269235,1732536702074,-10000.0,0.000439,120]
[343269236,1732536702083,-1000.0,0.000439,20]
[343269237,1732536702093,-1000.0,0.0004392,20]
[343269238,1732536702104,-1000.0,0.0004394,20]
[343269239,1732536702115,-1359.683997,0.0004394,20]
[343269240,1732536702124,-1000.0,0.0004396,20]
[343269241,1732536702135,-1000.0,0.0004396,20]
[343269242,1732536702144,-1062.06,0.00043972,120]
[343269243,1732536702155,-1000.0,0.0004398,20]
[343269244,1732536702164,-1000.0,0.0004398,20]
[343269245,1732536702174,-100000.0,0.00044,8]
[343269246,1732536702184,-1000.0,0.00044,20]
[343269247,1732536702195,-1000.0,0.00044,20]
[343269248,1732536702205,-685.17,0.00044002,2]
[343269249,1732536702215,-2609.3,0.00044109,60]
[343269250,1732536702224,-675.2,0.00044109,21]
[343269251,1732536702233,-500.0,0.00044109,21]
[343269252,1732536702242,-1143.4,0.00044109,21]
[343269253,1732536702251,-553.02,0.00044109,21]
[343269254,1732536702261,-645.36889913,0.00044109,21]
[343269255,1732536702271,-660.04,0.00044109,21]
[343269256,1732536702281,-550.37,0.00044109,21]
[343269257,1732536702290,-915.74,0.00044109,21]
[343269258,1732536702299,-529.4,0.00044109,21]
[343269259,1732536702309,-500.0,0.00044109,21]
[343269260,1732536702318,-661.32,0.00044109,21]
[343269261,1732536702327,-592.89,0.00044109,21]
[343269262,1732536702337,-596.54,0.00044109,21]
[343269263,1732536702347,-501.9,0.00044109,21]
[343269264,1732536702356,-615.05,0.00044109,21]
[343269265,1732536702365,-890.91,0.00044109,21]
[343269266,1732536702377,-2082.25,0.00044109,21]
[343269267,1732536702387,-648.22,0.00044109,21]
[343269268,1732536702396,-500.0,0.00044109,21]
[343269269,1732536702405,-500.0,0.00044109,21]
[343269270,1732536702415,-903.22,0.00044109,21]
[343269271,1732536702425,-259.521882,0.00044109,14]
[343269272,1732536702434,-1204.4,0.00044109,21]
[343269273,1732536702443,-783.23,0.00044109,21]
[343269274,1732536702453,-500.0,0.00044109,21]
[343269275,1732536702463,-1024.03,0.00044109,21]
[343269276,1732536702473,-500.0,0.00044109,21]
[343269277,1732536702482,-500.0,0.00044109,21]
[343269278,1732536702492,-2874.42,0.00044109,21]
[343269279,1732536702502,-634.92,0.00044109,21]
[343269280,1732536702511,-775.26,0.00044109,21]
[343269281,1732536702520,-552.41,0.00044109,21]
[343269282,1732536702530,-3082.64,0.00044109,21]
[343269283,1732536702540,-689.26,0.00044109,21]
[343269284,1732536702550,-739.61,0.00044109,21]
[343269285,1732536702560,-500.0,0.00044109,21]
[343269286,1732536702569,-3431.21,0.00044109,21]
[343269287,1732536702579,-535.48,0.00044109,21]
[343269288,1732536702588,-2326.47,0.00044109,21]
[343269289,1732536702598,-817.33,0.00044109,21]
[343269290,1732536702607,-8053.63,0.00044109,21]
[343269291,1732536702617,-939.05,0.00044109,21]
[343269292,1732536702627,-168.017315,0.00044109,21]
[343269293,1732536702637,-576.02,0.00044109,21]
[343269294,1732536702646,-8604.27,0.00044109,21]
[343269295,1732536702656,-659.22,0.00044109,21]
[343269296,1732536702666,-674.77,0.00044109,2]
[343269297,1732536702676,-897.77,0.00044109,21]
[343269298,1732536702685,-500.0,0.00044109,21]
[343269299,1732536702695,-5549.98,0.00044109,21]
[343269300,1732536702704,-747.44,0.00044109,21]
[343269301,1732536702714,-1247.78,0.00044109,21]
[343269302,1732536702723,-726.59,0.00044109,21]
[343269303,1732536702732,-1129.77,0.00044109,21]
[343269304,1732536702742,-963.68,0.00044109,21]
[343269305,1732536702752,-3123.05,0.00044109,21]
[343269306,1732536702761,-547.96,0.00044109,21]
[343269307,1732536702771,-727.18,0.00044109,21]
[343269308,1732536702780,-685.58,0.00044109,21]
[343269309,1732536702789,-8008.7,0.00044109,21]
[343269310,1732536702799,-913.31,0.00044109,21]
[343269311,1732536702808,-1103.1,0.00044109,21]
[343269312,1732536702818,-1042.25,0.00044109,21]
[343269313,1732536702828,-525.44,0.00044109,21]
[343269314,1732536702838,-714.29,0.00044109,21]
[343269315,1732536702848,-1098.83,0.00044109,21]
[343269316,1732536702858,-599.99,0.00044109,21]
[343269317,1732536702867,-500.0,0.00044109,21]
[343269318,1732536702878,-3141.32,0.00044109,21]
[343269319,1732536702888,-536.64,0.00044109,21]
[343269320,1732536702897,-1749.61,0.00044109,21]
[343269321,1732536702906,-520.31,0.00044109,21]
[343269322,1732536702915,-3086.47,0.00044109,21]
[343269323,1732536702926,-999.78,0.00044109,21]
[343269324,1732536702935,-702.08,0.00044109,21]
[343269325,1732536702947,-1823.51,0.00044109,120]
[343269326,1732536702961,-599.84,0.00044109,21]
[343269327,1732536702973,-516.76,0.00044109,21]
[343269328,1732536702984,-843.37,0.00044109,21]
[343269329,1732536702994,-897.11,0.00044109,21]
[343269330,1732536703005,-1516.6,0.00044109,21]
[343269331,1732536703015,-4321.07,0.00044109,21]
[343269332,1732536703024,-1501.72,0.00044109,21]
[343269333,1732536703035,-21441.79,0.00044109,21]
[343269334,1732536703045,-3276.7,0.00044109,21]
[343269335,1732536703055,-2182.69,0.00044109,21]
[343269336,1732536703066,-2334.22,0.00044109,21]
[343269337,1732536703076,-1941.42,0.00044109,21]
[343269338,1732536703086,-1034.74,0.00044109,21]
[343269339,1732536703096,-548.14,0.00044109,21]
[343269340,1732536703114,-1055.46,0.00044109,21]
[343269341,1732536703129,-500.0,0.00044151,21]
[343269342,1732536703141,-771.52,0.00044151,21]
[343269343,1732536703152,-490.10138623,0.00044151,21]
[343269344,1732536703165,-658.45,0.00044151,21]
[343269345,1732536703175,-1976.25,0.00044151,21]
[343269346,1732536703185,-876.13,0.00044151,21]
[343269347,1732536703196,-514.52,0.00044151,21]
[343269348,1732536703206,-476.07592778,0.00044151,21]
[343269349,1732536703216,-7241.01,0.00044151,21]
[343269350,1732536703227,-1484.3,0.00044151,21]
[343269351,1732536703237,-656.71,0.00044151,21]
[343269352,1732536703249,-1219.29,0.00044151,21]
[343269353,1732536703259,-1044.42,0.00044151,21]
[343269354,1732536703269,-5313.62,0.00044151,21]
[343269355,1732536703280,-635.51,0.00044151,21]
[343269356,1732536703290,-1329.57,0.00044151,21]
[343269357,1732536703300,-3316.78,0.00044151,21]
[343269358,1732536703310,-500.0,0.00044151,21]
[343269359,1732536703320,-913.11,0.00044151,21]
[343269360,1732536703330,-528.36,0.00044151,21]
[343269361,1732536703340,-1044.85,0.00044151,21]
[343269362,1732536703350,-1961.52,0.00044151,21]
[343269363,1732536703360,-1014.5,0.00044151,21]
[343269364,1732536703370,-1204.64,0.00044151,21]
[343269365,1732536703382,-2806.06,0.00044151,21]
[343269366,1732536703392,-713.37,0.00044151,21]
[343269367,1732536703403,-2152.31,0.00044151,21]
[343269368,1732536703414,-500.0,0.00044151,21]
[343269369,1732536703424,-2862.22,0.00044151,21]
[343269370,1732536703434,-818.24,0.00044151,21]
[343269371,1732536703451,-594.32,0.00044151,21]
[343269372,1732536703461,-5698.56,0.00044151,21]
[343269373,1732536703471,-2231.16,0.00044151,21]
[343269374,1732536703481,-3033.86,0.00044151,21]
[343269375,1732536703491,-204.0,0.000442,30]
[343269376,1732536703501,-204.0,0.000442,30]
[343269377,1732536703510,-190.65596399,0.00044224,28]
[343269378,1732536703521,-152.29,0.00044299,120]
[343269379,1732536703531,-500.0,0.00044306,120]
[343269380,1732536703541,-2000.0,0.00044306,120]
[343269381,1732536703551,-500.0,0.00044306,120]
[343269382,1732536703561,-200.0,0.00044306,120]
[343269383,1732536703571,-151.0,0.00044319,14]
[343269384,1732536703582,-255.210407,0.00044319,14]
[343269385,1732536703596,-168.85060596,0.00044329,60]
[343269386,1732536703607,-669.2669405,0.00044353,2]
[343269387,1732536703617,-3824.120655,0.00044353,2]
[343269388,1732536703630,-6317.2236534,0.00044353,2]
[343269389,1732536703641,-2609.3,0.00044383,60]
[343269390,1732536703651,-675.2,0.00044383,21]
[343269391,1732536703661,-384.57649901,0.00044383,21]
[343269392,1732536703671,-1143.4,0.00044383,21]
[343269393,1732536703681,-553.02,0.00044383,21]
[343269394,1732536703691,-660.04,0.00044383,21]
[343269395,1732536703702,-550.37,0.00044383,21]
[343269396,1732536703712,-915.74,0.00044383,21]
[343269397,1732536703722,-529.4,0.00044383,21]
[343269398,1732536703732,-622.63007868,0.00044383,21]
[343269399,1732536703742,-661.32,0.00044383,21]
[343269400,1732536703752,-592.89,0.00044383,21]
[343269401,1732536703762,-596.54,0.00044383,21]
[343269402,1732536703772,-501.9,0.00044383,21]
[343269403,1732536703782,-615.05,0.00044383,21]
[343269404,1732536703792,-890.91,0.00044383,21]
[343269405,1732536703803,-2082.25,0.00044383,21]
[343269406,1732536703814,-648.22,0.00044383,21]
[343269407,1732536703824,-501.62307054,0.00044383,21]
[343269408,1732536703834,-500.0,0.00044383,21]
[343269409,1732536703846,-903.22,0.00044383,21]
[343269410,1732536703856,-1204.4,0.00044383,21]
[343269411,1732536703866,-783.23,0.00044383,21]
[343269412,1732536703876,-500.0,0.00044383,21]
[343269413,1732536703888,-1024.03,0.00044383,21]
[343269414,1732536703898,-524.23854611,0.00044383,21]
[343269415,1732536703907,-500.0,0.00044383,21]
[343269416,1732536703918,-2874.42,0.00044383,21]
[343269417,1732536703927,-634.92,0.00044383,21]
[343269418,1732536703938,-775.26,0.00044383,21]
[343269419,1732536703948,-552.41,0.00044383,21]
[343269420,1732536703958,-3082.64,0.00044383,21]
[343269421,1732536703968,-689.26,0.00044383,21]
[343269422,1732536703978,-739.61,0.00044383,21]
[343269423,1732536703988,-180.86491806,0.00044383,21]
[343269424,1732536703997,-3431.21,0.00044383,21]
[343269425,1732536704007,-535.48,0.00044383,21]
[343269426,1732536704017,-2326.47,0.00044383,21]
[343269427,1732536704028,-817.33,0.00044383,21]
[343269428,1732536704038,-8053.63,0.00044383,21]
[343269429,1732536704048,-939.05,0.00044383,21]
[343269430,1732536704058,-576.02,0.00044383,21]
[343269431,1732536704073,-659.22,0.00044383,21]
[343269432,1732536704083,-8604.27,0.00044383,21]
[343269433,1732536704094,-674.77,0.00044383,2]
[343269434,1732536704105,-897.77,0.00044383,21]
[343269435,1732536704118,-500.0,0.00044383,21]
[343269436,1732536704130,-5549.98,0.00044383,21]
[343269437,1732536704140,-747.44,0.00044383,21]
[343269438,1732536704151,-1247.78,0.00044383,21]
[343269439,1732536704162,-726.59,0.00044383,21]
[343269440,1732536704172,-1129.77,0.00044383,21]
[343269441,1732536704182,-963.68,0.00044383,21]
[343269442,1732536704194,-3123.05,0.00044383,21]
[343269443,1732536704204,-547.96,0.00044383,21]
[343269444,1732536704214,-727.18,0.00044383,21]
[343269445,1732536704371,-685.58,0.00044383,21]
[343269446,1732536704385,-151.0,0.00044383,14]
[343269447,1732536704394,-8008.7,0.00044383,21]
[343269448,1732536704403,-913.31,0.00044383,21]
[343269449,1732536704413,-1103.1,0.00044383,21]
[343269450,1732536704423,-1042.25,0.00044383,21]
[343269451,1732536704432,-525.44,0.00044383,21]
[343269452,1732536704442,-714.29,0.00044383,21]
[343269453,1732536704452,-1098.83,0.00044383,21]
[343269454,1732536704461,-599.99,0.00044383,21]
[343269455,1732536704471,-2500.0,0.00044383,14]
[343269456,1732536704481,-500.0,0.00044383,21]
[343269457,1732536704491,-231.435469,0.00044383,14]
[343269458,1732536704501,-3141.32,0.00044383,21]
[343269459,1732536704511,-231.435469,0.00044383,14]
[343269460,1732536704521,-536.64,0.00044383,21]
[343269461,1732536704530,-2500.0,0.00044383,14]
[343269462,1732536704540,-1749.61,0.00044383,21]
[343269463,1732536704549,-520.31,0.00044383,21]
[343269464,1732536704559,-3086.47,0.00044383,21]
[343269465,1732536704569,-999.78,0.00044383,21]
[343269466,1732536704578,-702.08,0.00044383,21]
[343269467,1732536704587,-1823.51,0.00044383,120]
[343269468,1732536704597,-516.76,0.00044383,21]
[343269469,1732536704607,-599.84,0.00044383,21]
[343269470,1732536704616,-843.37,0.00044383,21]
[343269471,1732536704625,-897.11,0.00044383,21]
[343269472,1732536704637,-151.0,0.00044383,14]
[343269473,1732536704646,-1516.6,0.00044383,21]
[343269474,1732536704655,-4321.07,0.00044383,21]
[343269475,1732536704664,-1501.72,0.00044383,21]
[343269476,1732536704674,-1062.06,0.00044383,120]
[343269477,1732536704684,-21441.79,0.00044383,21]
[343269478,1732536704693,-3276.7,0.00044383,21]
[343269479,1732536704702,-2182.69,0.00044383,21]
[343269480,1732536704712,-2334.22,0.00044383,21]
[343269481,1732536704723,-1941.42,0.00044383,21]
[343269482,1732536704732,-1034.74,0.00044383,21]
[343269483,1732536704743,-548.14,0.00044383,21]
[343269484,1732536704754,-1055.46,0.00044383,21]
[343269485,1732536704764,-18937.62937292,0.00044385,15]
[343269486,1732536704774,-200.15400762,0.00044425,21]
[343269487,1732536704783,-771.52,0.00044425,21]
[343269488,1732536704793,-658.45,0.00044425,21]
[343269489,1732536704806,-1976.25,0.00044425,21]
[343269490,1732536704815,-876.13,0.00044425,21]
[343269491,1732536704825,-514.52,0.00044425,21]
[343269492,1732536704835,-7241.01,0.00044425,21]
[343269493,1732536704844,-1484.3,0.00044425,21]
[343269494,1732536704854,-656.71,0.00044425,21]
[343269495,1732536704863,-1219.29,0.00044425,21]
[343269496,1732536704873,-1044.42,0.00044425,21]
[343269497,1732536704885,-5313.62,0.00044425,21]
[343269498,1732536704894,-635.51,0.00044425,21]
[343269499,1732536704904,-1329.57,0.00044425,21]
[343269500,1732536704914,-3316.78,0.00044425,21]
[343269501,1732536704924,-181.08842917,0.00044425,21]
[343269502,1732536704933,-913.11,0.00044425,21]
[343269503,1732536704943,-528.36,0.00044425,21]
[343269504,1732536704952,-1044.85,0.00044425,21]
[343269505,1732536704961,-1961.52,0.00044425,21]
[343269506,1732536704970,-1014.5,0.00044425,21]
[343269507,1732536704980,-1204.64,0.00044425,21]
[343269508,1732536704990,-2806.06,0.00044425,21]
[343269509,1732536704999,-713.37,0.00044425,21]
[343269510,1732536705009,-2152.31,0.00044425,21]
[343269511,1732536705019,-220.5268819,0.00044425,21]
[343269512,1732536705029,-2862.22,0.00044425,21]
[343269513,1732536705039,-818.24,0.00044425,21]
[343269514,1732536705048,-594.32,0.00044425,21]
[343269515,1732536705059,-5698.56,0.00044425,21]
[343269516,1732536705069,-2231.16,0.00044425,21]
[343269517,1732536705079,-3033.86,0.00044425,21]
[343269518,1732536705090,-2000.0,0.0004444,2]
[343269519,1732536705100,-1600.0,0.0004444,2]
[343269520,1732536705112,-561.88,0.0004452,120]
[343269521,1732536705124,-561.88,0.0004452,120]
[343269522,1732536705135,-561.88,0.0004452,120]
[343269523,1732536705145,-561.88,0.0004452,120]
[343269524,1732536705156,-561.88,0.0004452,120]
[343269525,1732536705167,-561.88,0.0004452,120]
[343269526,1732536705179,-561.88,0.0004452,120]
[343269527,1732536705192,-561.88,0.0004452,120]
[343269528,1732536705205,-561.88,0.0004452,120]
[343269529,1732536705218,-561.88,0.0004452,120]
[343269530,1732536705228,-561.88,0.0004452,120]
[343269531,1732536705239,-561.88,0.0004452,120]
[343269532,1732536705249,-561.88,0.0004452,120]
[343269533,1732536705260,-561.88,0.0004452,120]
[343269534,1732536705270,-561.88,0.0004452,120]
[343269535,1732536705281,-561.88,0.0004452,120]
[343269536,1732536705291,-561.88,0.0004452,120]
[343269537,1732536705301,-561.88,0.0004452,120]
[343269538,1732536705312,-561.88,0.0004452,120]
[343269539,1732536705322,-561.88,0.0004452,120]
[343269540,1732536705332,-561.88,0.0004452,120]
[343269541,1732536705342,-561.88,0.0004452,120]
[343269542,1732536705352,-561.88,0.0004452,120]
[343269543,1732536705361,-394.44499,0.0004457,24]
[343269544,1732536705370,-2609.38546872,0.00044657,60]
[343269545,1732536705381,-675.3393412,0.00044657,21]
[343269546,1732536705391,-1143.42840993,0.00044657,21]
[343269547,1732536705400,-553.14238153,0.00044657,21]
[343269548,1732536705409,-660.24683203,0.00044657,21]
[343269549,1732536705419,-550.42950404,0.00044657,21]
[343269550,1732536705428,-915.91344991,0.00044657,21]
[343269551,1732536705438,-529.57539702,0.00044657,21]
[343269552,1732536705448,-661.46633565,0.00044657,21]
[343269553,1732536705457,-592.9960451,0.00044657,21]
[343269554,1732536705467,-596.54,0.00044657,21]
[343269555,1732536705477,-502.12839247,0.00044657,21]
[343269556,1732536705487,-615.05,0.00044657,21]
[343269557,1732536705496,-890.95915785,0.00044657,21]
[343269558,1732536705506,-2082.25,0.00044657,21]
[343269559,1732536705516,-648.22,0.00044657,21]
[343269560,1732536705525,-562.02198296,0.00044657,120]
[343269561,1732536705535,-237.81942065,0.00044657,21]
[343269562,1732536705544,-903.3251408,0.00044657,21]
[343269563,1732536705553,-1204.4,0.00044657,21]
[343269564,1732536705563,-783.35,0.00044657,21]
[343269565,1732536705572,-402.80373562,0.00044657,21]
[343269566,1732536705582,-1024.20875816,0.00044657,21]
[343269567,1732536705591,-500.0,0.00044657,21]
[343269568,1732536705601,-2874.54068771,0.00044657,21]
[343269569,1732536705610,-634.92,0.00044657,21]
[343269570,1732536705619,-775.27335333,0.00044657,21]
[343269571,1732536705628,-552.52660544,0.00044657,21]
[343269572,1732536705641,-3082.70126452,0.00044657,21]
[343269573,1732536705651,-689.41121553,0.00044657,21]
[343269574,1732536705660,-739.82977962,0.00044657,21]
[343269575,1732536705669,-3431.40967743,0.00044657,21]
[343269576,1732536705678,-535.6,0.00044657,21]
[343269577,1732536705689,-2326.66864213,0.00044657,21]
[343269578,1732536705698,-817.33,0.00044657,21]
[343269579,1732536705707,-8053.85218683,0.00044657,21]
[343269580,1732536705717,-939.2347035,0.00044657,21]
[343269581,1732536705726,-576.22213793,0.00044657,21]
[343269582,1732536705735,-659.28758663,0.00044657,21]
[343269583,1732536705745,-8604.49,0.00044657,21]
[343269584,1732536705754,-674.77,0.00044657,2]
[343269585,1732536705763,-897.91,0.00044657,21]
[343269586,1732536705772,-290.66786048,0.00044657,21]
[343269587,1732536705781,-5549.98,0.00044657,21]
[343269588,1732536705791,-747.64900037,0.00044657,21]
[343269589,1732536705800,-1247.94312717,0.00044657,21]
[343269590,1732536705809,-726.81892274,0.00044657,21]
[343269591,1732536705818,-1129.86974893,0.00044657,21]
[343269592,1732536705827,-963.71074173,0.00044657,21]
[343269593,1732536705839,-3123.11111312,0.00044657,21]
[343269594,1732536705848,-548.06,0.00044657,21]
[343269595,1732536705858,-727.29616831,0.00044657,21]
[343269596,1732536705868,-685.58,0.00044657,21]
[343269597,1732536705878,-8008.72,0.00044657,21]
[343269598,1732536705893,-913.5198612,0.00044657,21]
[343269599,1732536705906,-1103.21966704,0.00044657,21]
[343269600,1732536705915,-1042.33941249,0.00044657,21]
[343269601,1732536705925,-525.61982025,0.00044657,21]
[343269602,1732536705935,-714.29,0.00044657,21]
[343269603,1732536705945,-1098.87562232,0.00044657,21]
[343269604,1732536705954,-600.00866921,0.00044657,21]
[343269605,1732536705964,-500.0,0.00044657,21]
[343269606,1732536705974,-3141.51235093,0.00044657,21]
[343269607,1732536705984,-536.73613186,0.00044657,21]
[343269608,1732536705993,-1749.71540498,0.00044657,21]
[343269609,1732536706003,-520.41850067,0.00044657,21]
[343269610,1732536706012,-3086.55,0.00044657,21]
[343269611,1732536706022,-999.97149524,0.00044657,21]
[343269612,1732536706031,-702.08,0.00044657,21]
[343269613,1732536706041,-1823.69401043,0.00044657,120]
[343269614,1732536706050,-599.96104146,0.00044657,21]
[343269615,1732536706060,-516.82717872,0.00044657,21]
[343269616,1732536706069,-843.54586961,0.00044657,21]
[343269617,1732536706079,-897.31889391,0.00044657,21]
[343269618,1732536706088,-1516.76839835,0.00044657,21]
[343269619,1732536706098,-4321.07788552,0.00044657,21]
[343269620,1732536706108,-1501.73727704,0.00044657,21]
[343269621,1732536706121,-21441.98223765,0.00044657,21]
[343269622,1732536706131,-3276.80514183,0.00044657,21]
[343269623,1732536706140,-2182.69,0.00044657,21]
[343269624,1732536706150,-2334.36170212,0.00044657,21]
[343269625,1732536706160,-1941.65782644,0.00044657,21]
[343269626,1732536706170,-1034.87915379,0.00044657,21]
[343269627,1732536706179,-548.36,0.00044657,21]
[343269628,1732536706190,-1055.46402287,0.00044657,21]
[343269629,1732536706200,-771.52560917,0.00044699,21]
[343269630,1732536706210,-658.4529636,0.00044699,21]
[343269631,1732536706220,-1976.31126605,0.00044699,21]
[343269632,1732536706230,-876.33422363,0.00044699,21]
[343269633,1732536706240,-514.58448961,0.00044699,21]
[343269634,1732536706249,-7241.0277,0.00044699,21]
[343269635,1732536706259,-1484.48253011,0.00044699,21]
[343269636,1732536706268,-656.82636733,0.00044699,21]
[343269637,1732536706278,-1219.36016631,0.00044699,21]
[343269638,1732536706289,-1044.63080425,0.00044699,21]
[343269639,1732536706298,-5313.66194623,0.00044699,21]
[343269640,1732536706308,-635.52957459,0.00044699,21]
[343269641,1732536706317,-1329.70697762,0.00044699,21]
[343269642,1732536706327,-3316.85124873,0.00044699,21]
[343269643,1732536706336,-913.30767333,0.00044699,21]
[343269644,1732536706346,-528.45394084,0.00044699,21]
[343269645,1732536706355,-1044.98899231,0.00044699,21]
[343269646,1732536706364,-1961.66237454,0.00044699,21]
[343269647,1732536706374,-1014.63064794,0.00044699,21]
[343269648,1732536706386,-1204.78089678,0.00044699,21]
[343269649,1732536706395,-2806.1452936,0.00044699,21]
[343269650,1732536706405,-713.54945054,0.00044699,21]
[343269651,1732536706414,-2152.45902588,0.00044699,21]
[343269652,1732536706424,-2862.27404707,0.00044699,21]
[343269653,1732536706433,-818.32111782,0.00044699,21]
[343269654,1732536706443,-594.55824896,0.00044699,21]
[343269655,1732536706452,-5698.57090728,0.00044699,21]
[343269656,1732536706462,-2231.28537535,0.00044699,21]
[343269657,1732536706472,-3033.95461464,0.00044699,21]
[343269658,1732536706482,-23922.57019684,0.00044717,2]
[343269659,1732536706491,-814.50529361,0.00044717,2]
[343269660,1732536706501,-2526.03231241,0.00044737,2]
[343269661,1732536706511,-492.85456474,0.00044737,2]
[343269662,1732536706521,-1163.0,0.00044744,2]
[343269663,1732536706530,-150.0,0.00044744,2]
[343269664,1732536706540,-150.0,0.00044744,2]
[343269665,1732536706549,-5949.0,0.00044744,2]
[343269666,1732536706558,-13677.0,0.00044744,2]
[343269667,1732536706568,-1062.06,0.00044794,120]
[343269668,1732536706577,-558.53,0.000448,2]
[343269669,1732536706588,-1010.96,0.000449,77]
[343269670,1732536706598,-925.0,0.000449,30]
[343269671,1732536706609,-726.0,0.000449,30]